bitfinex/quotes_BTCUSD_20251226
["timestamp","ask_amount","ask_price","bid_price","bid_amount"]
[1766739796798,0.01126595,88763.0,88751.0,0.0676047]
[1766739796991,0.01126595,88763.0,88748.0,0.07888795]
[1766739796992,0.01126659,88758.0,88748.0,0.02254919]
[1766739797206,0.01126659,88758.0,88744.0,0.06762129]
[1766739797207,0.01126709,88754.0,88744.0,0.06762129]
[1766739797412,0.01126697,88755.0,88745.0,0.02254919]
[1766739797660,0.01126697,88755.0,88746.0,0.01126811]
[1766739798257,0.01126697,88755.0,88747.0,0.01126798]
[1766739798663,0.01126684,88756.0,88747.0,0.01126798]
[1766739799381,0.01126671,88757.0,88748.0,0.01126785]
[1766739799749,0.01126671,88757.0,88746.0,0.01126811]
[1766739799949,0.01126684,88756.0,88746.0,0.01126811]
[1766739800288,0.01126684,88756.0,88747.0,0.01126798]
[1766739800466,0.01126671,88757.0,88748.0,0.01126785]
[1766739800668,0.06759938,88759.0,88748.0,0.01126785]
[1766739801028,0.06759938,88759.0,88749.0,0.01126773]
[1766739801385,0.22532285,88762.0,88749.0,0.01126773]
[1766739801562,0.01126608,88762.0,88753.0,0.01126722]
[1766739801772,0.0848862,88761.0,88752.0,0.01126735]
[1766739801970,0.07362,88761.0,88753.0,0.01126722]
[1766739802336,0.07362,88761.0,88754.0,0.01126709]
[1766739802814,0.07362,88761.0,88753.0,0.01126722]
[1766739803049,0.01126646,88759.0,88750.0,0.0112676]
[1766739803183,0.08488646,88759.0,88750.0,0.0112676]
[1766739803398,0.08488646,88759.0,88747.0,0.05633974]
[1766739803734,0.01126671,88757.0,88748.0,0.01126785]
[1766739804115,0.01126671,88757.0,88746.0,0.01126811]
[1766739804328,0.01126697,88755.0,88745.0,0.0563412]
[1766739804504,0.07362,88753.0,88746.0,0.01126811]
[1766739804715,0.07362,88753.0,88748.0,0.01126785]
[1766739804931,0.07362,88753.0,88749.0,0.01126773]
[1766739805174,0.07362,88753.0,88748.0,0.01126785]
[1766739805384,0.07362,88753.0,88747.0,0.01126798]
[1766739805567,0.07362,88753.0,88748.0,0.01126785]
[1766739805895,0.07362,88753.0,88743.0,0.01126849]
[1766739806078,0.07362,88747.0,88743.0,0.01126849]
[1766739806564,0.07307,88747.0,88741.0,0.01126874]
[1766739806763,0.01126735,88752.0,88742.0,0.01126862]
[1766739807068,0.08488735,88752.0,88743.0,0.01126849]
[1766739807266,0.08488735,88752.0,88744.0,0.01126836]
[1766739807764,0.07362,88752.0,88744.0,0.01126836]
[1766739808180,0.08488722,88753.0,88744.0,0.01126836]
[1766739808505,0.07362,88753.0,88745.0,0.01126824]
[1766739808908,0.08488722,88753.0,88744.0,0.01126836]
[1766739809127,0.07362,88753.0,88746.0,0.01126811]
[1766739809333,0.07362,88753.0,88745.0,0.01126824]
[1766739809938,0.08488722,88753.0,88742.0,0.01126862]
[1766739810170,0.08488735,88752.0,88743.0,0.01126849]
[1766739811154,0.07362,88751.0,88743.0,0.01126849]
[1766739811691,0.07362,88751.0,88744.0,0.01126836]
[1766739812514,0.07362,88751.0,88745.0,0.01126824]
[1766739812919,0.07362,88751.0,88744.0,0.01126836]
[1766739813121,0.07362,88751.0,88745.0,0.01126824]
[1766739813760,0.07362,88751.0,88746.0,0.01126811]
[1766739814012,0.07362,88751.0,88745.0,0.01126824]
[1766739814392,0.07362,88751.0,88743.0,0.01126849]
[1766739814599,0.00055,88743.0,88740.0,0.01126887]
[1766739814977,0.0112676,88750.0,88740.0,0.01126887]
[1766739814978,0.07362,88749.0,88741.0,0.01126874]
[1766739815223,0.07362,88749.0,88742.0,0.01126862]
[1766739815580,0.07362,88749.0,88743.0,0.01126849]
[1766739815919,0.08488773,88749.0,88740.0,0.01126887]
[1766739816119,0.07362,88749.0,88741.0,0.01071874]
[1766739816711,0.07362,88749.0,88743.0,0.01126849]
[1766739817313,0.07362,88749.0,88744.0,0.01126836]
[1766739817519,0.07362,88749.0,88746.0,0.01126811]
[1766739817673,0.07362,88749.0,88745.0,0.01126824]
[1766739818279,0.07362,88749.0,88744.0,0.01126836]
[1766739818578,0.07362,88749.0,88745.0,0.01126824]
[1766739819380,0.07362,88749.0,88746.0,0.01126811]
[1766739819947,0.073071,88749.0,88746.0,0.01126811]
[1766739820302,0.073071,88749.0,88746.0,0.06760834]
[1766739820741,0.073071,88749.0,88747.0,0.05633956]
[1766739821307,0.073071,88749.0,88747.0,0.04789264]
[1766739821658,0.073071,88749.0,88746.0,0.01126811]
[1766739821814,0.000549,88747.0,88745.0,0.0676091]
[1766739821999,0.073071,88749.0,88745.0,0.01126824]
[1766739822199,0.073071,88749.0,88744.0,0.01126836]
[1766739822423,0.073071,88749.0,88746.0,0.01126811]
[1766739822624,0.073071,88749.0,88745.0,0.01126824]
[1766739823030,0.073071,88749.0,88744.0,0.01126836]
[1766739823324,0.073071,88749.0,88745.0,0.01126824]
[1766739823549,0.073071,88749.0,88744.0,0.01126836]
[1766739824284,0.073071,88749.0,88745.0,0.01126824]
[1766739825368,0.073071,88749.0,88746.0,0.01126811]
[1766739825569,0.073071,88749.0,88745.0,0.01126824]
[1766739825776,0.073071,88749.0,88746.0,0.01126811]
[1766739826074,0.073071,88749.0,88743.0,0.01126849]
[1766739826495,0.073071,88749.0,88742.0,0.01126862]
[1766739826789,0.073071,88749.0,88742.0,0.06761166]
[1766739826971,0.073071,88749.0,88743.0,0.01126849]
[1766739827736,0.000549,88743.0,88739.0,0.0676137]
[1766739828181,0.073071,88749.0,88739.0,0.0676137]
[1766739828182,0.073071,88749.0,88741.0,0.01126874]
[1766739829313,0.08433873,88749.0,88739.0,0.011269]
[1766739829513,0.08433873,88749.0,88740.0,0.01126887]
[1766739830182,0.01126785,88748.0,88740.0,0.01126887]
[1766739830382,0.01126798,88747.0,88739.0,0.011269]
[1766739830685,0.01126785,88748.0,88739.0,0.011269]
[1766739831114,0.01126798,88747.0,88739.0,0.011269]
[1766739831300,0.07093,88747.0,88740.0,0.01126887]
[1766739831517,0.07093,88747.0,88739.0,0.011269]
[1766739831705,0.07093,88747.0,88740.0,0.01126887]
[1766739832281,0.000549,88740.0,88739.0,0.011269]
[1766739832688,0.07093,88747.0,88740.0,0.01126887]
[1766739834936,0.000549,88740.0,88737.0,0.01158776]
[1766739835099,0.08274787,88740.0,88731.0,0.01127001]
[1766739835297,0.07093,88739.0,88730.0,0.03381863]
[1766739835549,0.07093,88739.0,88732.0,0.01126989]
[1766739835911,0.082199,88739.0,88730.0,0.02255014]
[1766739836136,0.07093,88739.0,88730.0,0.02255014]
[1766739836416,0.01126938,88736.0,88730.0,0.01128]
[1766739836619,0.07093,88735.0,88730.0,0.01128]
[1766739837123,0.07093,88735.0,88727.0,0.01147052]
[1766739837340,0.07093,88735.0,88728.0,0.01127039]
[1766739837930,0.07093,88735.0,88730.0,0.01127014]
[1766739838317,0.01126912,88738.0,88730.0,0.01127014]
[1766739838524,0.011269,88739.0,88730.0,0.01127014]
[1766739839722,0.01126912,88738.0,88730.0,0.01127014]
[1766739840339,0.08219874,88741.0,88730.0,0.01127014]
[1766739840544,0.08219874,88741.0,88731.0,0.0676201]
[1766739840743,0.01126887,88740.0,88731.0,0.0676201]
[1766739840964,0.011269,88739.0,88731.0,0.01127001]
[1766739841173,0.011269,88739.0,88730.0,0.01127014]
[1766739841346,0.011269,88739.0,88731.0,0.01127001]
[1766739841544,0.08219874,88741.0,88732.0,0.01126989]
[1766739841884,0.01126887,88740.0,88731.0,0.01127001]
[1766739842267,0.08219887,88740.0,88731.0,0.01127001]
[1766739842476,0.011269,88739.0,88731.0,0.01127001]
[1766739842839,0.01126912,88738.0,88730.0,0.01127014]
[1766739843037,0.01126912,88738.0,88729.0,0.01127027]
[1766739843912,0.011269,88739.0,88730.0,0.01127014]
[1766739844601,0.082199,88739.0,88730.0,0.01127014]
[1766739845118,0.08219912,88738.0,88730.0,0.01127014]
[1766739845340,0.07093,88738.0,88730.0,0.01127014]
[1766739845693,0.08221,88738.0,88731.0,0.01127001]
[1766739845893,0.000549,88731.0,88728.0,0.01127039]
[1766739846120,0.000549,88731.0,88728.0,0.06762176]
[1766739846650,0.08221,88738.0,88731.0,0.01127001]
[1766739846846,0.08221,88738.0,88732.0,0.01126989]
[1766739847005,0.08221,88738.0,88731.0,0.01127001]
[1766739847354,0.08221,88738.0,88732.0,0.01126989]
[1766739847503,0.08221,88738.0,88734.0,0.01126963]
[1766739847708,0.08221,88738.0,88733.0,0.01126976]
[1766739848736,0.08221,88738.0,88734.0,0.01126963]
[1766739848917,0.08221,88738.0,88733.0,0.06761814]
[1766739849112,0.08166,88738.0,88732.0,0.06761876]
[1766739849336,0.08166,88738.0,88734.0,0.01126963]
[1766739849651,0.08166,88738.0,88733.0,0.01126976]
[1766739849857,0.08166,88738.0,88734.0,0.01126963]
[1766739850006,0.08166,88738.0,88733.0,0.01126976]
[1766739850447,0.08166,88738.0,88734.0,0.01126963]
[1766739850956,0.08166,88738.0,88732.0,0.01126989]
[1766739851298,0.08166,88738.0,88733.0,0.01126976]
[1766739851502,0.08166,88738.0,88732.0,0.01126989]
[1766739851775,0.08166,88738.0,88734.0,0.01126963]
[1766739852074,0.08166,88738.0,88732.0,0.01126989]
[1766739852280,0.08166,88738.0,88733.0,0.01126976]
[1766739852426,0.08166,88738.0,88734.0,0.01126963]
[1766739853437,0.08166,88738.0,88733.0,0.01126976]
[1766739853870,0.08166,88738.0,88734.0,0.01126963]
[1766739854718,0.08166,88738.0,88735.0,0.01126951]
[1766739854863,0.01128,88746.0,88740.0,0.01126887]
[1766739855062,0.01137705,88746.0,88739.0,0.011269]
[1766739855887,0.01137705,88746.0,88738.0,0.06761439]
[1766739856092,0.01137705,88746.0,88739.0,0.011269]
[1766739856295,9.705e-05,88746.0,88741.0,0.05634332]
[1766739856467,0.02254722,88753.0,88744.0,0.05634146]
[1766739856688,0.01126735,88752.0,88743.0,0.01126849]
[1766739856926,0.01126747,88751.0,88743.0,0.01126849]
[1766739857467,0.01126747,88751.0,88742.0,0.01126862]
[1766739857674,0.01126747,88751.0,88740.0,0.01126887]
[1766739857874,0.000549,88740.0,88739.0,0.022549]
[1766739858079,0.01126798,88747.0,88739.0,0.01128]
[1766739858280,0.01126811,88746.0,88739.0,0.01128]
[1766739858483,0.01126785,88748.0,88739.0,0.022549]
[1766739858677,0.01126785,88748.0,88739.0,0.01128]
[1766739858917,0.01126798,88747.0,88739.0,0.01128]
[1766739859333,0.067608,88747.0,88739.0,0.01128]
[1766739859502,0.01126811,88746.0,88739.0,0.01128]
[1766739859698,0.01126798,88747.0,88739.0,0.01128]
[1766739859899,0.01126798,88747.0,88739.0,0.022549]
[1766739860182,0.01126785,88748.0,88739.0,0.022549]
[1766739860385,0.01126798,88747.0,88739.0,0.01128]
[1766739860632,0.01126798,88747.0,88739.0,0.022549]
[1766739860835,0.01126785,88748.0,88739.0,0.022549]
[1766739861031,0.01126811,88746.0,88739.0,0.01128]
[1766739861241,0.01126824,88745.0,88739.0,0.01128]
[1766739861575,0.01126824,88745.0,88735.0,0.01126951]
[1766739861576,0.01126874,88741.0,88735.0,0.01128]
[1766739861712,0.07414,88741.0,88735.0,0.01137705]
[1766739862933,0.07414,88741.0,88735.0,0.01082705]
[1766739863343,0.01126849,88743.0,88735.0,0.01082705]
[1766739863543,0.07414,88741.0,88735.0,9.705e-05]
[1766739863983,0.011269,88739.0,88729.0,0.01127027]
[1766739864185,0.07414,88736.0,88726.0,0.01127065]
[1766739864344,0.07414,88734.0,88726.0,0.01127065]
[1766739864537,0.07414,88734.0,88727.0,0.01147052]
[1766739864994,0.01126976,88733.0,88727.0,0.0002]
[1766739865142,0.08541014,88730.0,88727.0,0.0002]
[1766739865348,0.08541014,88730.0,88723.0,0.01128]
[1766739865555,0.07414,88728.0,88720.0,0.01127141]
[1766739865760,0.07414,88728.0,88722.0,0.01127116]
[1766739866178,0.07414,88728.0,88723.0,0.01127103]
[1766739866377,0.07414,88728.0,88725.0,0.01127078]
[1766739866578,0.07414,88728.0,88724.0,0.0112709]
[1766739867275,0.07414,88728.0,88725.0,0.01127078]
[1766739867689,0.06427542,88728.0,88725.0,0.06762416]
[1766739867889,0.06372642,88728.0,88725.0,0.06762416]
[1766739869785,0.01128,88730.0,88727.0,0.01127052]
[1766739869973,0.01128,88733.0,88730.0,0.01127014]
[1766739870742,0.0113135,88739.0,88731.0,0.01127001]
[1766739870944,0.01128,88734.0,88728.0,0.01127039]
[1766739871154,0.01128,88734.0,88727.0,0.01127052]
[1766739871368,0.01112185,88734.0,88727.0,0.01127052]
[1766739871568,0.01128,88736.0,88734.0,0.00055]
[1766739872084,0.0741845,88739.0,88731.0,0.01127001]
[1766739872288,0.01128,88738.0,88731.0,0.01127001]
[1766739872493,0.09668912,88738.0,88729.0,0.01127027]
[1766739872702,0.08542,88738.0,88730.0,0.01127014]
[1766739873253,0.08542,88738.0,88731.0,0.01127001]
[1766739873436,0.08542,88738.0,88730.0,0.01127014]
[1766739873615,0.09668912,88738.0,88730.0,0.01127014]
[1766739873820,0.08542,88738.0,88731.0,0.01127001]
[1766739874218,0.08542,88738.0,88730.0,0.01127014]
[1766739874439,0.08542,88738.0,88731.0,0.01127001]
[1766739874678,0.08542,88738.0,88730.0,0.01127014]
[1766739874888,0.08542,88738.0,88731.0,0.01127001]
[1766739875341,0.08542,88738.0,88730.0,0.01127014]
[1766739875561,0.08542,88738.0,88731.0,0.01127001]
[1766739876865,0.08542,88738.0,88731.0,0.06761999]
[1766739877371,0.07414,88738.0,88732.0,0.01126989]
[1766739877571,0.01128,88737.0,88733.0,0.01126976]
[1766739878569,0.01128,88737.0,88734.0,0.01126963]
[1766739878774,0.01128,88737.0,88733.0,0.01126976]
[1766739880040,0.00804273,88737.0,88733.0,0.01126976]
[1766739880587,0.07414,88738.0,88732.0,0.01126989]
[1766739880887,0.08542,88738.0,88732.0,0.01126989]
[1766739881039,0.08542,88738.0,88733.0,0.01126976]
[1766739883233,0.08542,88738.0,88731.0,0.01127001]
[1766739883717,0.09668912,88738.0,88729.0,0.01127027]
[1766739883876,0.08542,88738.0,88730.0,0.01127014]
[1766739884529,0.08542,88738.0,88731.0,0.01127001]
[1766739885298,0.08542,88738.0,88729.0,0.01127027]
[1766739885485,0.01126938,88736.0,88727.0,0.01127052]
[1766739885683,0.01126938,88736.0,88728.0,0.01127039]
[1766739885891,0.01126938,88736.0,88727.0,0.01127052]
[1766739886089,0.01126938,88736.0,88728.0,0.01127039]
[1766739886290,0.01126925,88737.0,88728.0,0.01127039]
[1766739887259,0.06947,88737.0,88728.0,0.06762221]
[1766739887439,0.01128,88736.0,88730.0,0.01127014]
[1766739887604,0.01128,88736.0,88729.0,0.01127027]
[1766739889264,0.01128,88736.0,88730.0,0.01127014]
[1766739890139,0.01128,88736.0,88731.0,0.01127001]
[1766739891417,0.01128,88736.0,88730.0,0.01127014]
[1766739892221,0.01128,88736.0,88729.0,0.01127027]
[1766739892386,0.01128,88736.0,88731.0,0.01127001]
[1766739892532,0.01128,88736.0,88729.0,0.01127027]
[1766739892733,0.01128,88736.0,88731.0,0.01127001]
[1766739892979,0.01128,88736.0,88732.0,0.01126989]
[1766739893151,0.01128,88736.0,88730.0,0.01127014]
[1766739893985,0.01128,88736.0,88730.0,0.06762039]
[1766739894594,0.01128,88736.0,88730.0,0.01127014]
[1766739894795,0.01128,88736.0,88731.0,0.01127001]
[1766739895002,0.01128,88736.0,88729.0,0.06762104]
[1766739895470,0.01128,88736.0,88730.0,0.01127014]
[1766739895953,0.01128,88736.0,88731.0,0.01127001]
[1766739896686,0.01128,88736.0,88732.0,0.01126989]
[1766739897231,0.01128,88736.0,88731.0,0.01127001]
[1766739897472,0.01128,88736.0,88732.0,0.01126989]
[1766739897874,0.01128,88736.0,88733.0,0.01126976]
[1766739898038,0.01128,88736.0,88732.0,0.01126989]
[1766739898557,0.08075,88736.0,88732.0,0.01126989]
[1766739898936,0.06947,88736.0,88731.0,0.01127001]
[1766739899138,0.06947,88736.0,88732.0,0.01126989]
[1766739899501,0.06947,88736.0,88731.0,0.01127001]
[1766739900023,0.06947,88736.0,88732.0,0.01126989]
[1766739900881,0.06947,88736.0,88733.0,0.01126976]
[1766739901085,0.06947,88736.0,88732.0,0.01126989]
[1766739901398,0.06947,88736.0,88733.0,0.01126976]
[1766739901578,0.06947,88736.0,88731.0,0.01127001]
[1766739901777,0.06947,88736.0,88730.0,0.06762057]
[1766739902550,0.06947,88736.0,88731.0,0.01127001]
[1766739902872,0.06947,88736.0,88729.0,0.01127027]
[1766739903916,0.06947,88736.0,88731.0,0.01127001]
[1766739904261,0.06947,88736.0,88733.0,0.01126976]
[1766739905687,0.06892,88736.0,88733.0,0.01126976]
[1766739907202,0.06892,88736.0,88733.0,0.06761801]
[1766739907876,0.06892,88736.0,88734.0,0.0563479]
[1766739907996,0.06892,88736.0,88733.0,0.06761827]
[1766739908604,0.06892,88736.0,88733.0,0.01126976]
[1766739909253,0.06892,88736.0,88733.0,0.06761824]
[1766739910427,0.06892,88736.0,88733.0,0.01126976]
[1766739912250,0.06892,88736.0,88731.0,1e-08]
[1766739912574,0.06892,88736.0,88730.0,0.03769971]
[1766739912718,0.06892,88736.0,88732.0,0.05634899]
[1766739913823,0.06892,88736.0,88733.0,0.01126976]
[1766739915232,0.06892,88736.0,88731.0,0.01127001]
[1766739915433,0.000549,88733.0,88730.0,0.01127014]
[1766739915673,0.00055,88730.0,88727.0,0.05635223]
[1766739915853,0.06892,88736.0,88729.0,0.01127027]
[1766739916479,0.06892,88736.0,88730.0,0.01127014]
[1766739917083,0.06892,88736.0,88731.0,0.02254919]
[1766739917284,0.06892,88736.0,88732.0,0.01126989]
[1766739917758,0.06892,88736.0,88733.0,0.01126976]
[1766739919295,0.0002,88744.0,88739.0,0.011269]
[1766739919506,0.0002,88744.0,88741.0,0.01126874]
[1766739919872,0.07425,88756.0,88747.0,0.01126798]
[1766739920039,4.452e-05,88756.0,88755.0,0.01126697]
[1766739920190,0.000549,88755.0,88753.0,0.06760277]
[1766739920411,0.01128,88762.0,88756.0,0.01126684]
[1766739920612,0.00035919,88762.0,88759.0,0.01126646]
[1766739921013,0.00035919,88762.0,88758.0,0.01126659]
[1766739921220,0.00035919,88762.0,88757.0,0.01126671]
[1766739921421,0.00035919,88762.0,88753.0,0.067603]
[1766739921599,0.00035919,88762.0,88756.0,0.01126684]
[1766739921805,0.00035919,88762.0,88758.0,0.01126659]
[1766739922284,0.00035919,88762.0,88757.0,0.01126671]
[1766739922585,0.00035919,88762.0,88758.0,0.01126659]
[1766739922788,0.00035919,88762.0,88757.0,0.01126671]
[1766739923509,0.00035919,88762.0,88756.0,0.01126684]
[1766739923798,0.00035919,88762.0,88755.0,0.01126697]
[1766739923938,0.00035919,88762.0,88756.0,0.01126684]
[1766739924142,0.00035919,88762.0,88759.0,0.01126646]
[1766739924367,1.9e-07,88762.0,88759.0,0.01126646]
[1766739924533,1.9e-07,88762.0,88758.0,0.01126659]
[1766739924739,1.9e-07,88762.0,88757.0,0.01126671]
[1766739925439,1.9e-07,88762.0,88758.0,0.01126659]
[1766739925635,0.000359,88758.0,88757.0,0.01126671]
[1766739926134,1.9e-07,88762.0,88757.0,0.01126671]
[1766739926335,1.9e-07,88762.0,88756.0,0.01126684]
[1766739926752,1.9e-07,88762.0,88757.0,0.01126671]
[1766739926967,1.9e-07,88762.0,88757.0,0.05633358]
[1766739927187,1.9e-07,88762.0,88756.0,0.01126684]
[1766739927400,0.000359,88756.0,88750.0,0.0676052]
[1766739927948,0.07425019,88762.0,88751.0,0.05633701]
[1766739928111,0.07425,88750.0,88740.0,0.05634401]
[1766739928314,0.07425,88749.0,88741.0,0.01128]
[1766739928512,0.01126785,88748.0,88741.0,0.01128]
[1766739929230,0.07425,88749.0,88741.0,0.01128]
[1766739929409,0.08551773,88749.0,88741.0,0.02254874]
[1766739929615,0.07425,88749.0,88742.0,0.01126862]
[1766739930531,0.07425,88749.0,88743.0,0.01126849]
[1766739930714,0.07425,88749.0,88742.0,0.01126862]
[1766739931406,0.07425,88749.0,88741.0,0.02254874]
[1766739931594,0.07425,88749.0,88742.0,0.01126862]
[1766739932035,0.07425,88749.0,88741.0,0.02254874]
[1766739932246,0.08551773,88749.0,88741.0,0.01128]
[1766739932499,0.01126798,88747.0,88741.0,0.01128]
[1766739932807,0.08551811,88746.0,88736.0,0.03381812]
[1766739933014,0.08551811,88746.0,88738.0,0.06761467]
[1766739933015,0.000359,88741.0,88738.0,0.06761467]
[1766739933416,0.07425,88746.0,88741.0,0.01126874]
[1766739933631,0.07425,88746.0,88740.0,0.01126887]
[1766739934261,0.07425,88746.0,88742.0,0.01126862]
[1766739934630,0.07425,88746.0,88741.0,0.01126874]
[1766739936342,0.07425,88746.0,88742.0,0.01126862]
[1766739936884,0.07425,88746.0,88743.0,0.01126849]
[1766739937544,0.07425,88746.0,88744.0,0.05634131]
[1766739937741,0.02254697,88755.0,88743.0,0.06761084]
[1766739937742,0.07425,88754.0,88747.0,0.06760791]
[1766739938004,0.07425,88754.0,88747.0,0.01126798]
[1766739938814,0.07425,88754.0,88746.0,0.01126811]
[1766739939802,0.07425,88752.0,88745.0,0.01126824]
[1766739940211,0.07425,88752.0,88744.0,0.01126836]
[1766739940636,0.07425,88752.0,88745.0,0.01126824]
[1766739944041,0.07425,88752.0,88744.0,0.01126836]
[1766739944042,0.000549,88745.0,88744.0,0.01126836]
[1766739944247,0.07425,88752.0,88745.0,0.01126824]
[1766739944632,0.07425,88752.0,88744.0,0.01126836]
[1766739944839,0.07425,88752.0,88745.0,0.01126824]
[1766739945449,0.07425,88752.0,88743.0,0.01126849]
[1766739945899,0.07425,88752.0,88744.0,0.01126836]
[1766739946590,0.07425,88752.0,88745.0,0.01126824]
[1766739946954,0.08551735,88752.0,88743.0,0.01126849]
[1766739947176,0.07425,88752.0,88744.0,0.01126836]
[1766739947538,0.07425,88752.0,88745.0,0.01126824]
[1766739947741,0.07425,88752.0,88744.0,0.01126836]
[1766739948713,0.08551735,88752.0,88743.0,0.01126849]
[1766739948837,0.07425,88752.0,88744.0,0.01126836]
[1766739949312,0.08551735,88752.0,88743.0,0.01126849]
[1766739949511,0.08551735,88752.0,88744.0,0.01126836]
[1766739949655,0.000549,88744.0,88741.0,0.01126874]
[1766739950325,0.07273,88750.0,88742.0,0.01126862]
[1766739950615,0.0839976,88750.0,88742.0,0.01126862]
[1766739950818,0.0839976,88750.0,88741.0,0.01126874]
[1766739951314,0.07273,88750.0,88742.0,0.06761171]
[1766739951514,0.07273,88750.0,88744.0,0.01126836]
[1766739951747,0.07273,88750.0,88746.0,0.01126811]
[1766739951953,0.07273,88750.0,88744.0,0.01126836]
[1766739952232,0.07273,88750.0,88742.0,0.01126862]
[1766739952436,0.07273,88750.0,88743.0,0.01126849]
[1766739953242,0.07273,88750.0,88744.0,0.01126836]
[1766739953904,0.0839976,88750.0,88741.0,0.01126874]
[1766739954587,0.07273,88750.0,88743.0,0.01126849]
[1766739954788,0.000549,88743.0,88740.0,0.02254887]
[1766739955038,0.08399773,88749.0,88741.0,0.01126874]
[1766739955427,0.08399773,88749.0,88739.0,0.06762455]
[1766739955588,0.08399773,88749.0,88738.0,0.01128]
[1766739955788,0.07273,88749.0,88738.0,0.07150754]
[1766739956042,0.07273,88749.0,88738.0,0.01128]
[1766739956269,0.07273,88749.0,88741.0,0.01126874]
[1766739956410,0.07273,88749.0,88738.0,0.02254912]
[1766739956589,0.07273,88749.0,88741.0,0.01126874]
[1766739956812,0.07273,88749.0,88742.0,0.01126862]
[1766739957009,0.07273,88749.0,88743.0,0.01126849]
[1766739957434,0.07273,88749.0,88744.0,0.01126836]
[1766739958256,0.07273,88749.0,88743.0,0.01126849]
[1766739958458,0.07273,88749.0,88741.0,0.06761207]
[1766739958811,0.07273,88749.0,88741.0,0.01126874]
[1766739959164,0.08399773,88749.0,88740.0,0.01126887]
[1766739960142,0.01126785,88748.0,88738.0,0.02254912]
[1766739960351,0.000549,88738.0,88734.0,0.01126862]
[1766739960553,0.000549,88738.0,88728.0,0.01128]
[1766739960554,0.01126912,88738.0,88728.0,0.01128]
[1766739960882,0.22537097,88743.0,88728.0,0.12699218]
[1766739960883,0.06761121,88743.0,88728.0,0.12699218]
[1766739961073,0.01126862,88742.0,88733.0,0.01126976]
[1766739961275,0.01126874,88741.0,88731.0,0.01127001]
[1766739961573,0.011269,88739.0,88729.0,0.08191027]
[1766739961780,0.01126912,88738.0,88729.0,0.07064]
[1766739961986,0.06761519,88738.0,88728.0,5.3e-07]
[1766739962242,0.000549,88729.0,88728.0,5.3e-07]
[1766739962812,0.01126925,88737.0,88728.0,5.3e-07]
[1766739963415,0.01126925,88737.0,88728.0,0.00035953]
[1766739963614,0.01126938,88736.0,88728.0,0.00035953]
[1766739963794,0.01126912,88738.0,88729.0,0.01127027]
[1766739964247,0.02254912,88738.0,88728.0,0.00035953]
[1766739964404,0.01126925,88737.0,88728.0,0.01162992]
[1766739964809,0.01128,88738.0,88729.0,0.01127027]
[1766739965039,0.02254912,88738.0,88729.0,0.01127027]
[1766739965334,0.01128,88738.0,88729.0,0.01127027]
[1766739965537,0.02254912,88738.0,88728.0,0.01162992]
[1766739965706,0.02254912,88738.0,88729.0,0.01127027]
[1766739967066,0.02254912,88738.0,88728.0,0.01162992]
[1766739967262,0.01126925,88737.0,88728.0,0.01162992]
[1766739967876,0.02254912,88738.0,88729.0,0.01127027]
[1766739969589,0.01128,88738.0,88730.0,0.01127014]
[1766739970128,0.01128,88738.0,88731.0,0.01127001]
[1766739970400,0.01128,88738.0,88732.0,0.01126989]
[1766739970543,0.01128,88738.0,88731.0,0.01127001]
[1766739970740,0.01128,88738.0,88732.0,0.01126989]
[1766739970957,0.01128,88738.0,88734.0,0.01126963]
[1766739971150,0.01128,88738.0,88732.0,0.01126989]
[1766739971739,0.01128,88739.0,88733.0,0.01126976]
[1766739972008,0.01128,88739.0,88732.0,0.01126989]
[1766739972208,0.01128,88739.0,88733.0,0.01126976]
[1766739972978,0.01128,88739.0,88732.0,0.01126989]
[1766739973573,0.01128,88739.0,88728.0,0.01162992]
[1766739973775,0.000549,88732.0,88728.0,0.01162992]
[1766739973984,0.01128,88739.0,88728.0,0.01162992]
[1766739974381,0.022549,88739.0,88729.0,0.01127027]
[1766739974625,0.001099,88729.0,88728.0,0.00035953]
[1766739975118,0.01126963,88734.0,88728.0,0.00035953]
[1766739975502,0.01126951,88735.0,88728.0,0.00035953]
[1766739975713,0.01126963,88734.0,88728.0,5.3e-07]
[1766739976170,0.01126951,88735.0,88728.0,5.3e-07]
[1766739976714,0.01126963,88734.0,88728.0,5.3e-07]
[1766739977240,0.01126951,88735.0,88728.0,5.3e-07]
[1766739977432,0.01126963,88734.0,88728.0,5.3e-07]
[1766739977590,0.01126976,88733.0,88728.0,5.3e-07]
[1766739978196,0.01126963,88734.0,88728.0,5.3e-07]
[1766739978576,0.01126976,88733.0,88728.0,5.3e-07]
[1766739978881,0.01126989,88732.0,88728.0,5.3e-07]
[1766739979184,0.01126976,88733.0,88728.0,5.3e-07]
[1766739979384,0.0676201,88731.0,88728.0,5.3e-07]
[1766739979648,0.01127052,88727.0,88717.0,0.02255179]
[1766739979815,0.01127065,88726.0,88717.0,4.452e-05]
[1766739980032,0.01127192,88716.0,88709.0,0.06775]
[1766739980235,0.03996372,88775.0,88709.0,0.06775]
[1766739980236,0.0563576,88720.0,88709.0,4.45e-05]
[1766739980537,0.01127116,88722.0,88713.0,0.0112723]
[1766739980741,0.01128,88723.0,88713.0,0.0112723]
[1766739981116,0.01128,88723.0,88714.0,0.01127217]
[1766739981240,0.01128,88723.0,88715.0,0.06775]
[1766739981241,0.07890632,88723.0,88715.0,0.06775]
[1766739981441,0.01127116,88722.0,88715.0,0.06775]
[1766739981641,0.01127141,88720.0,88710.0,0.02254919]
[1766739981843,0.01127141,88720.0,88710.0,0.10157187]
[1766739982282,0.01127128,88721.0,88711.0,0.07902255]
[1766739982463,0.01127141,88720.0,88711.0,0.06775]
[1766739983849,0.01127154,88719.0,88711.0,0.0672]
[1766739984058,0.01127166,88718.0,88711.0,0.0672]
[1766739984250,0.01127154,88719.0,88711.0,0.0672]
[1766739984581,0.01127179,88717.0,88711.0,0.0672]
[1766739984906,0.01127166,88718.0,88711.0,0.0672]
[1766739985895,0.01127154,88719.0,88711.0,0.0672]
[1766739986443,0.01127179,88717.0,88711.0,0.0672]
[1766739986599,0.01127192,88716.0,88711.0,0.0672]
[1766739986811,0.01127179,88717.0,88711.0,0.0672]
[1766739987017,0.06762931,88719.0,88711.0,0.0672]
[1766739987181,0.01127128,88721.0,88711.0,0.07847255]
[1766739987797,0.01127128,88721.0,88712.0,0.01127243]
[1766739988201,0.01127128,88721.0,88711.0,0.07847255]
[1766739988420,0.01127141,88720.0,88711.0,0.0672]
[1766739989145,0.01127128,88721.0,88711.0,0.07847255]
[1766739989556,0.01127141,88720.0,88711.0,0.0672]
[1766739989760,0.01127166,88718.0,88711.0,0.0672]
[1766739990052,0.01127192,88716.0,88709.0,4.45e-05]
[1766739990257,0.01127179,88717.0,88709.0,4.45e-05]